fUSD/lending_fUSD_20241003
["ID","MTS","AMOUNT","RATE_DAILY","PERIOD"]
[339780940,1727983843570,-5550.89523965,0.00011,2]
[339780942,1727983843581,-2392.40090628,0.00011,2]
[339781171,1727983846011,-588.01563484,0.00011,2]
[339781174,1727983846022,-1701.5,0.00011,2]
[339781176,1727983846033,-2133.07562019,0.00011,2]
[339781178,1727983846044,-6172.81784563,0.00011,2]
[339781180,1727983846055,-946.21399857,0.00011,2]
[339781182,1727983846066,-873.74712415,0.00011,2]
[339781185,1727983846077,-2082.9365688,0.00011,2]
[339781187,1727983846089,-409.14193754,0.00011,2]
[339781189,1727983846100,-618.3903605,0.00011,2]
[339781191,1727983846111,-329823.3289957,0.00011,2]
[339781193,1727983846122,-852.17645481,0.00011,2]
[339781196,1727983846135,-1401.42201098,0.00011,2]
[339781198,1727983846146,-557.8322401,0.00011,2]
[339781200,1727983846158,-685.11662691,0.00011,2]
[339781202,1727983846169,-438.217861,0.00011,2]
[339781205,1727983846180,-3648.9525255,0.00011,2]
[339781207,1727983846191,-481.61185414,0.00011,2]
[339781209,1727983846202,-10391.97917367,0.00011,2]
[339781211,1727983846213,-648.975,0.00011,2]
[339781213,1727983846224,-793.6875,0.00011,2]
[339781215,1727983846235,-431.22961645,0.00011,2]
[339781218,1727983846252,-17047.25616546,0.00011,2]
[339781220,1727983846264,-2283.42218229,0.00011,2]
[339781223,1727983846276,-4369.62043342,0.00011,2]
[339781225,1727983846288,-5807.1874379,0.00011,2]
[339781227,1727983846300,-4050.58204498,0.00011,2]
[339781230,1727983846313,-1529.65936875,0.00011,2]
[339781232,1727983846324,-2600.0,0.00011,2]
[339781234,1727983846339,-11369.00907416,0.00011,2]
[339781236,1727983846350,-635.84286283,0.00011,2]
[339781238,1727983846361,-4283.74000465,0.00011,2]
[339781241,1727983846374,-119178.34962962,0.00011,2]
[339781243,1727983846385,-17189.36167256,0.00011,2]
[339781245,1727983846398,-383.87296915,0.00011,2]
[339781247,1727983846409,-4545.31242003,0.00011,2]
[339781249,1727983846420,-626.08111507,0.00011,2]
[339781252,1727983846432,-633.18255,0.00011,2]
[339781254,1727983846443,-552.86,0.00011,2]
[339781256,1727983846454,-3690.46625153,0.00011,2]
[339781258,1727983846466,-39196.10025195,0.00011,2]
[339781260,1727983846478,-390.67842279,0.00011,2]
[339781263,1727983846490,-432.00902886,0.00011,2]
[339781265,1727983846501,-400.0,0.00011,2]
[339781267,1727983846513,-2479.97084612,0.00011,2]
[339781269,1727983846525,-2660.46376001,0.00011,2]
[339781272,1727983846536,-2420.86061955,0.00011,2]
[339781274,1727983846547,-354.10178514,0.00011,2]
[339781277,1727983846568,-1290.00000001,0.00011,2]
[339781279,1727983846579,-36801.46384279,0.00011,2]
[339781281,1727983846589,-3922.06321715,0.00011,2]
[339781283,1727983846600,-805.58226419,0.00011,2]
[339781286,1727983846610,-6048.65000081,0.00011,2]
[339781288,1727983846622,-1210.82825412,0.00011,2]
[339781290,1727983846632,-1415.44956061,0.00011,2]
[339781292,1727983846643,-879.9737992,0.00011,2]
[339781294,1727983846654,-8888.09487666,0.00011,2]
[339781300,1727983846701,-20705.82098335,0.00011,2]
[339781302,1727983846713,-674.79429573,0.00011,2]
[339781306,1727983846734,-675.75650086,0.00011,2]
[339781308,1727983846745,-594.96858718,0.00011,2]
[339781310,1727983846755,-306523.52493484,0.00011,2]
[339781317,1727983846814,-550.0,0.00011,2]
[339781320,1727983846825,-598.125,0.00011,2]
[339781322,1727983846836,-1906.18600947,0.00011,2]
[339781324,1727983846847,-295.25514135,0.00011,2]
[339781326,1727983846857,-13515.52826375,0.00011,2]
[339781328,1727983846868,-264.56933083,0.00011,2]
[339781369,1727984040680,-420.1107,0.00010293,2]
[339781370,1727984040703,-349.2404,0.00010345,2]
[339781371,1727984040725,-150.0,0.00010599,2]
[339781372,1727984040751,-90809.2856,0.000106,2]
[339781373,1727984040772,-7226.98433775,0.0001069,2]
[339781374,1727984040803,-40498.07576041,0.0001069,2]
[339781375,1727984040824,-1000.0,0.00010873,2]
[339781376,1727984040847,-478.5045,0.00010873,2]
[339781377,1727984040869,-6961.25689416,0.000109,2]
[339781378,1727984040892,-1000.0,0.00010999,2]
[339781379,1727984040914,-500.0,0.00010999,2]
[339781380,1727984040935,-500.0,0.00010999,2]
[339781381,1727984040956,-190.07888324,0.00010999,2]
[339781382,1727984040978,-328.72519815,0.00010999,2]
[339781383,1727984041004,-71939.22366099,0.00011,2]
[339781384,1727984081235,796.76,9.732e-05,2]
[339781385,1727984137495,466.03,9.996e-05,2]
[339781386,1727984200589,150.0,0.00010226,2]
[339781387,1727984709346,150.0,9.888e-05,2]
[339781388,1727984709657,150.0,0.00010025,2]
[339781389,1727984710004,150.0,0.00010162,2]
[339781390,1727984713947,150.0,9.888e-05,2]
[339781391,1727984714255,150.0,0.00010162,2]
[339781392,1727984722133,150.0,9.888e-05,2]
[339781393,1727984724662,150.0,9.888e-05,2]
[339781394,1727984726016,442.72,8.242e-05,2]
[339781395,1727984733567,150.0,9.888e-05,2]
[339781396,1727984738783,150.00000001,9.888e-05,2]
[339781399,1727984795640,200.0,0.00010138,2]
[339781400,1727984853270,250.0,0.00010191,2]
[339781412,1727984979924,618.2,0.00010162,2]
[339781421,1727985032077,-575.7,0.00010226,2]
[339781422,1727985032088,-364.38,0.00010242,2]
[339781423,1727985032098,-3630.77,0.00010293,2]
[339781424,1727985032107,-150.0,0.000103,2]
[339781425,1727985032117,-150.0,0.00010437,2]
[339781426,1727985032127,-150.0,0.00010437,2]
[339781427,1727985032136,-150.0,0.00010437,2]
[339781428,1727985032146,-442.72,0.00010506,2]
[339781429,1727985032156,-471.26,0.0001052,2]
[339781430,1727985032166,-585.99296907,0.00010569,2]
[339781431,1727985032213,-457.53703093,0.00010569,2]
[339781432,1727985032223,-150.0,0.00010574,2]
[339781433,1727985032233,-300.0,0.00010609,2]
[339781434,1727985032243,-8372.61699069,0.0001061,2]
[339781435,1727985032264,-15527.38300931,0.0001061,2]
[339781436,1727985032274,-150.0,0.00010712,2]
[339781437,1727985032284,-150.0,0.00010712,2]
[339781438,1727985032293,-250.0,0.00010827,2]
[339781439,1727985032303,-352.22,0.00010827,2]
[339781440,1727985032313,-52.91539356,0.00010849,2]
[339781441,1727985032328,-97.08460644,0.00010849,2]
[339781442,1727985032342,-185.33539356,0.00010849,2]
[339781444,1727985032353,-314.65460644,0.00010849,2]
[339781445,1727985032362,-155.45,0.00010853,2]
[339781447,1727985032374,-150.0,0.00010877,2]
[339781449,1727985032383,-618.51897098,0.000109,2]
[339781451,1727985032395,-1103.55713475,0.000109,2]
[339781454,1727985032414,-2765.6778511,0.000109,2]
[339781456,1727985032425,-1144.03705431,0.000109,2]
[339781458,1727985032436,-700.0,0.000109,2]
[339781461,1727985032462,-357.42691725,0.000109,2]
[339781508,1727985038055,-8270.36564238,0.000109,2]
[339781509,1727985038067,-3002.45002923,0.000109,2]
[339781510,1727985038077,-163.90333942,0.000109,2]
[339781511,1727985038088,-4009.62668885,0.000109,2]
[339781512,1727985038099,-2255.50451584,0.000109,2]
[339781513,1727985038109,-225.51966307,0.000109,2]
[339781514,1727985038119,-150.0,0.00010958,2]
[339781515,1727985038129,-157.89,0.00010959,2]
[339781516,1727985038138,-150.0,0.00010959,2]
[339781517,1727985038148,-3284.88,0.00010959,2]
[339781518,1727985038158,-250.0,0.00010959,2]
[339781519,1727985038167,-805.09,0.00010959,2]
[339781520,1727985038178,-260.68036801,0.00010986,2]
[339781521,1727985038187,-159.84486862,0.00010986,2]
[339781522,1727985038197,-150.0,0.00010986,2]
[339781523,1727985038216,-150.8509707,0.00010986,2]
[339781524,1727985038226,-150.00000001,0.00010986,2]
[339781525,1727985038236,-1475.28643953,0.00010999,3]
[339781526,1727985038245,-432.09761421,0.00010999,3]
[339781527,1727985038261,-742.11629914,0.00010999,3]
[339781528,1727985038273,-277.0527081,0.00010999,3]
[339781530,1727985038310,-24.01981808,0.00010999,3]
[339781532,1727985038320,-2659.56931745,0.00011,2]
[339781535,1727985038343,-887.83016339,0.00011,2]
[339781549,1727985040188,-4515.90098311,0.00011,2]
[339781550,1727985040200,-1200.0,0.00011,2]
[339781551,1727985040254,-834.30484756,0.00011,2]
[339781552,1727985040320,-13057.7601101,0.00011,2]
[339781553,1727985040332,-42015.368,0.00011,2]
[339781554,1727985040394,-337.374,0.00011,2]
[339781555,1727985040405,-420.525589,0.00011,2]
[339781556,1727985040417,-986.30859846,0.00011,2]
[339781557,1727985040428,-708.01587747,0.00011,2]
[339781558,1727985040456,-40435.81690446,0.00011,2]
[339781559,1727985040468,-35039.87520665,0.00011,2]
[339781560,1727985040480,-1589.9884,0.00011,2]
[339781805,1727985043228,-3918.7910805,0.00011,2]
[339781808,1727985043240,-117345.0,0.00011,2]
[339781811,1727985043252,-127280.0,0.00011,2]
[339781814,1727985043264,-436.4889855,0.00011,2]
[339781817,1727985043275,-520.26401847,0.00011,2]
[339781831,1727985043411,-4342.00319205,0.00011,2]
[339781833,1727985043423,-526.83208673,0.00011,2]
[339781835,1727985043435,-1963.95623651,0.00011,2]
[339781850,1727985043569,-802.06340159,0.00011,2]
[339781852,1727985043589,-9947.60000044,0.00011,2]
[339781855,1727985043603,-1857.78,0.00011,2]
[339781857,1727985043615,-2851.40714027,0.00011,2]
[339782095,1727985046108,-2074.30745586,0.00011,2]
[339782102,1727985046173,-346.76974357,0.00011,2]
[339782111,1727985046362,-36145.24384162,0.00011,2]
[339782113,1727985046373,-34253.45091569,0.00011,2]
[339782115,1727985046384,-432.77116256,0.00011,2]
[339782132,1727985046543,-5800.7172,0.00011,2]
[339782134,1727985046556,-4553.8190213,0.00011,2]
[339782137,1727985046571,-850.0,0.00011,2]
[339782660,1727985252006,398.44,9.123e-05,2]
[339782661,1727985486281,-250.0,0.00010852,2]
[339782662,1727985486312,-150.0,0.00010899,2]
[339782663,1727985486342,-90.2607,0.000109,2]
[339782664,1727985486355,-250.0,0.000109,2]
[339782665,1727985486366,-150.0,0.000109,2]
[339782666,1727985486381,-2456.4786,0.000109,2]
[339782667,1727985486390,-490.2607,0.000109,2]
[339782668,1727985537311,-1214.0,0.000109,2]
[339782672,1727985684556,170.44,0.00010213,2]
[339782673,1727985713402,351.26,0.00010213,2]
[339782674,1727985760079,1155.52,0.00010079,2]
[339782675,1727985766787,545.09,0.00010128,2]
[339782676,1727985772922,1904.13,8.219e-05,2]
[339782677,1727985806875,151.52,0.00010023,2]
[339782678,1727985807109,151.52,0.00010028,2]
[339782679,1727985807341,151.52,0.00010032,2]
[339782680,1727985808661,151.52,0.00010037,2]
[339782681,1727985808902,151.52,0.00010042,2]
[339782682,1727985809131,151.52,0.00010046,2]
[339782683,1727985809410,151.52,0.00010051,2]
[339782684,1727985809668,151.52,0.00010055,2]
[339782685,1727985809892,151.52,0.0001006,2]
[339782686,1727985810112,151.52,0.00010064,2]
[339782687,1727985810581,151.52,0.00010069,2]
[339782688,1727985810797,151.52,0.00010073,2]
[339782689,1727985825680,165.98,0.00010088,2]
[339782690,1727985902527,150.0,9.888e-05,2]
[339782691,1727985902901,150.0,0.0001001,2]
[339782692,1727985903341,150.0,0.00010132,2]
[339782693,1727985906761,23900.0,0.00010076,2]
[339782694,1727985908179,150.0,9.888e-05,2]
[339782695,1727985915410,150.0,9.888e-05,2]
[339782696,1727985917875,150.0,9.888e-05,2]
[339782697,1727985923275,1958.28,9.917e-05,2]
[339782698,1727985926617,150.0,9.888e-05,2]
[339782699,1727985970921,200.0,9.942e-05,2]
[339782700,1727985978444,2646.53,9.954e-05,2]
[339782701,1727985993273,273.15,7.985e-05,2]
[339782702,1727985994689,273.15,8.784e-05,2]
[339782703,1727985994817,273.15,9.583e-05,2]
[339782704,1727986003912,463.16,9.952e-05,2]
[339782705,1727986062890,300.0,9.88e-05,2]
[339782706,1727986080836,1852.42,9.925e-05,2]
[339782707,1727986116935,250.0,9.914e-05,2]
[339782708,1727986139318,377.0,9.871e-05,2]
[339782709,1727986139790,500.0,9.895e-05,2]
[339782710,1727986146012,1345.26,9.88e-05,2]
[339782713,1727986181842,250.0,9.88e-05,2]
[339782714,1727986194805,845.82,9.969e-05,2]
[339782716,1727986209500,150.0,9.88e-05,2]
[339782717,1727986209689,150.0,9.88e-05,2]
[339782718,1727986209874,150.0,9.88e-05,2]
[339782719,1727986210089,150.0,9.88e-05,2]
[339782720,1727986210357,150.0,9.88e-05,2]
[339782721,1727986210502,150.0,9.88e-05,2]
[339782722,1727986210727,150.0,9.88e-05,2]
[339782723,1727986210951,150.0,9.88e-05,2]
[339782724,1727986211251,150.0,9.88e-05,2]
[339782725,1727986211474,150.0,9.88e-05,2]
[339782726,1727986211828,150.0,9.88e-05,2]
[339782727,1727986211878,150.0,9.88e-05,2]
[339782728,1727986212066,150.0,9.88e-05,2]
[339782729,1727986212299,150.0,9.88e-05,2]
[339782730,1727986212518,150.0,9.88e-05,2]
[339782731,1727986212717,150.0,9.88e-05,2]
[339782732,1727986212951,150.0,9.88e-05,2]
[339782733,1727986213095,150.0,9.88e-05,2]
[339782734,1727986213304,150.0,9.88e-05,2]
[339782735,1727986213520,150.0,9.88e-05,2]
[339782736,1727986213678,150.0,9.88e-05,2]
[339782737,1727986213871,150.0,9.88e-05,2]
[339782738,1727986214077,150.0,9.88e-05,2]
[339782739,1727986214254,150.0,9.88e-05,2]
[339782740,1727986214443,150.0,9.88e-05,2]
[339782741,1727986214649,209.51990488,9.88e-05,2]
[339782744,1727986232217,-150.0,0.00010254,2]
[339782745,1727986232227,-1226.01,0.00010256,2]
[339782746,1727986232236,-150.0,0.00010376,2]
[339782747,1727986232245,-273.15,0.00010381,2]
[339782748,1727986232255,-150.0,0.00010437,2]
[339782749,1727986232264,-1904.13,0.00010483,2]
[339782750,1727986232273,-537.58,0.00010483,2]
[339782751,1727986232282,-150.0,0.00010498,2]
[339782752,1727986232291,-150.0,0.0001062,2]
[339782753,1727986232302,-150.0,0.00010742,2]
[339782754,1727986232311,-349.2404,0.000108,2]
[339782755,1727986232321,-300.3,0.00010841,2]
[339782756,1727986232330,-121.56924083,0.00010841,2]
[339782757,1727986232467,-3064.27632,0.00010841,2]
[339782758,1727986232479,-1610.25443917,0.00010841,2]
[339782759,1727986232488,-150.0,0.00010864,2]
[339782760,1727986232498,-150.99,0.0001087,2]
[339782761,1727986232508,-1000.0,0.00010899,2]
[339782762,1727986232517,-150.0,0.00010899,2]
[339782763,1727986232526,-2239.444,0.000109,2]
[339782764,1727986232536,-478.5045,0.000109,2]
[339782765,1727986232545,-1000.0,0.000109,2]
[339782766,1727986232555,-3663.0922,0.000109,2]
[339782767,1727986232564,-6498.0575,0.000109,2]
[339782768,1727986232573,-13603.65736083,0.000109,2]
[339782769,1727986232600,-1357.03628517,0.000109,2]
[339782770,1727986234452,-2215.45501744,0.00010376,2]
[339782771,1727986234466,-1161.35257624,0.00010376,2]
[339782772,1727986234483,-1184.24886143,0.00010376,2]
[339782773,1727986234494,-654.85,0.00010376,2]
[339782774,1727986234506,-1792.99258213,0.00010376,2]
[339782775,1727986234515,-28901.069254,0.000109,2]
[339782776,1727986234525,-10214.6905,0.000109,2]
[339782777,1727986234534,-151.0,0.000109,2]
[339782778,1727986234543,-237.0,0.000109,2]
[339782779,1727986234555,-500.0,0.000109,2]
[339782780,1727986234564,-500.0,0.000109,2]
[339782781,1727986234573,-500.0,0.000109,2]
[339782782,1727986234583,-500.0,0.000109,2]
[339782784,1727986234593,-500.0,0.000109,2]
[339782786,1727986234602,-500.0,0.000109,2]
[339782788,1727986234612,-500.0,0.000109,2]
[339782790,1727986234621,-500.0,0.000109,2]
[339782792,1727986234631,-500.0,0.000109,2]
[339782794,1727986234641,-500.0,0.000109,2]
[339782796,1727986234651,-500.0,0.000109,2]
[339782798,1727986234661,-500.0,0.000109,2]
[339782800,1727986234671,-500.0,0.000109,2]
[339782802,1727986234680,-500.0,0.000109,2]
[339782804,1727986234689,-500.0,0.000109,2]
[339782806,1727986234699,-500.0,0.000109,2]
[339782808,1727986234709,-500.0,0.000109,2]
[339782810,1727986234719,-500.0,0.000109,2]
[339782812,1727986234728,-500.0,0.000109,2]
[339782814,1727986234737,-500.0,0.000109,2]
[339782816,1727986234747,-500.0,0.000109,2]
[339782818,1727986234756,-500.0,0.000109,2]
[339782820,1727986234765,-500.0,0.000109,2]
[339782822,1727986234775,-500.0,0.000109,2]
[339782824,1727986234784,-500.0,0.000109,2]
[339782826,1727986234793,-500.0,0.000109,2]
[339782827,1727986234804,-500.0,0.000109,2]
[339782830,1727986234814,-500.0,0.000109,2]
[339782832,1727986234824,-500.0,0.000109,2]
[339782834,1727986234833,-500.0,0.000109,2]
[339782836,1727986234843,-500.0,0.000109,2]
[339782838,1727986234853,-500.0,0.000109,2]
[339782840,1727986234862,-500.0,0.000109,2]
[339782842,1727986234871,-500.0,0.000109,2]
[339782844,1727986234881,-500.0,0.000109,2]
[339782846,1727986234890,-500.0,0.000109,2]
[339782848,1727986234900,-500.0,0.000109,2]
[339782850,1727986234910,-500.0,0.000109,2]
[339782852,1727986234920,-500.0,0.000109,2]
[339782854,1727986234930,-500.0,0.000109,2]
[339782856,1727986234939,-500.0,0.000109,2]
[339782858,1727986234948,-500.0,0.000109,2]
[339782860,1727986234958,-591.0,0.000109,2]
[339782861,1727986234967,-500.0,0.000109,2]
[339782863,1727986234976,-559.0,0.000109,2]
[339782865,1727986234985,-163.90333942,0.000109,2]
[339782867,1727986234995,-6579.02035256,0.000109,2]
[339782869,1727986235005,-157.8,0.00010959,2]
[339782871,1727986235014,-159.88,0.00010959,2]
[339782873,1727986235023,-150.0,0.00010959,2]
[339782875,1727986235033,-250.0,0.00010959,2]
[339782877,1727986235043,-500.0,0.00010973,2]
[339782879,1727986235053,-500.0,0.00010973,2]
[339782881,1727986235063,-500.0,0.00010973,2]
[339782882,1727986235073,-150.0,0.00010986,2]
[339782883,1727986235084,-230.86149222,0.00010986,2]
[339782884,1727986235094,-150.0,0.00010986,2]
[339782885,1727986235102,-152.13,0.0001099,2]
[339782886,1727986235112,-500.0,0.00010998,2]
[339782887,1727986235120,-500.0,0.00010998,2]
[339782888,1727986235131,-500.0,0.00010998,2]
[339782889,1727986235141,-500.0,0.00010998,2]
[339782890,1727986235151,-500.0,0.00010998,2]
[339782891,1727986235161,-500.0,0.00010998,2]
[339782892,1727986235171,-500.0,0.00010998,2]
[339782893,1727986235181,-619.02060341,0.00010998,2]
[339782894,1727986235191,-500.0,0.00010998,2]
[339782895,1727986235200,-500.0,0.00010998,2]
[339782896,1727986235209,-500.0,0.00010998,2]
[339782897,1727986235219,-500.0,0.00010998,2]
[339782898,1727986235229,-1000.0,0.00010999,2]
[339782899,1727986235239,-500.0,0.00010999,2]
[339782900,1727986235248,-550.0,0.00010999,2]
[339782901,1727986235258,-357.02366497,0.00010999,2]
[339782902,1727986235268,-501.48928604,0.00010999,2]
[339782903,1727986235278,-500.0,0.00010999,2]
[339782904,1727986235288,-428761.17753999,0.00010999,2]
[339782905,1727986235313,-1212.95967931,0.00010999,2]
[339782910,1727986238200,-420.1107,0.00010745,2]
[339782911,1727986238210,-240.3793,0.00010999,2]
[339782912,1727986238253,-403.449,0.00010999,2]
[339782913,1727986238307,-556.031,0.00010999,2]
[339782914,1727986238415,-1121.48036,0.00010999,2]
[339782922,1727986240199,-344726.40083133,0.00010999,2]
[339782923,1727986240209,-8042.00462328,0.00011,2]
[339782924,1727986240253,-744.96847343,0.00011,2]
[339782925,1727986240264,-131636.8927666,0.00011,2]
[339782926,1727986240275,-584.01077895,0.00011,2]
[339782927,1727986240286,-5169.12813013,0.00011,2]
[339782928,1727986240312,-2951.7197915,0.00011,2]
[339782929,1727986240322,-1300.0,0.00011,2]
[339782930,1727986240364,-453.8784,0.00011,2]
[339782931,1727986240375,-540.44574635,0.00011,2]
[339782932,1727986240387,-1200.9008108,0.00011,2]
[339782933,1727986240418,-186696.30956167,0.00011,2]
[339782934,1727986240473,-1593.55023297,0.00011,2]
[339782935,1727986240484,-904.85065899,0.00011,2]
[339782936,1727986240497,-4287.70000001,0.00011,2]
[339783209,1727986243249,-381.16870133,0.00011,2]
[339783212,1727986243261,-405.466,0.00011,2]
[339783214,1727986243272,-5461.22,0.00011,2]
[339783218,1727986243303,-2156.18686136,0.00011,2]
[339783220,1727986243314,-50430.68290997,0.00011,2]
[339783222,1727986243324,-460.32635449,0.00011,2]
[339783227,1727986243358,-600.64996105,0.00011,2]
[339783229,1727986243370,-277867.79436085,0.00011,2]
[339783231,1727986243383,-1360.0494024,0.00011,2]
[339783233,1727986243395,-7898.999995,0.00011,2]
[339783236,1727986243414,-575.47544634,0.00011,2]
[339783239,1727986243424,-281.326473,0.00011,2]
[339783241,1727986243437,-1017.6830018,0.00011,2]
[339783243,1727986243449,-1189.88173211,0.00011,2]
[339783245,1727986243460,-446.51173508,0.00011,2]
[339783248,1727986243472,-7979.52814858,0.00011,2]
[339783250,1727986243483,-290.5510577,0.00011,2]
[339783252,1727986243493,-1905773.47941967,0.00011,2]
[339783254,1727986243504,-313.60578957,0.00011,2]
[339783263,1727986243578,-2899.8749465,0.00011,2]
[339783265,1727986243590,-436.78634993,0.00011,2]
[339783267,1727986243601,-6680.291501,0.00011,2]
[339783269,1727986243612,-96660.3848501,0.00011,2]
[339783272,1727986243623,-3695.10176852,0.00011,2]
[339783516,1727986246212,-211.53895662,0.000108,2]
[339783518,1727986246222,-1517.04157295,0.00011,2]
[339783520,1727986246234,-892744.66025361,0.00011,2]
[339783523,1727986246245,-807.9399602,0.00011,2]
[339783525,1727986246257,-5940.0,0.00011,2]
[339783527,1727986246268,-619.76020313,0.00011,2]
[339783529,1727986246280,-544.95565774,0.00011,2]
[339783536,1727986246343,-395.606992,0.00011,2]
[339783538,1727986246354,-12129.79429577,0.00011,2]
[339783540,1727986246366,-4004.75103814,0.00011,2]
[339783542,1727986246379,-578.09,0.00011,2]
[339783544,1727986246391,-55402.3854545,0.00011,2]
[339783546,1727986246402,-3229.8648,0.00011,2]
[339783549,1727986246424,-269.24,0.00011,2]
[339783551,1727986246436,-3174.29495388,0.00011,2]
[339783553,1727986246448,-13064.08927026,0.00011,2]
[339783556,1727986246465,-80000.0,0.00011,2]
[339783864,1727986300386,1734.0,8.973e-05,2]
[339783865,1727986488332,200.0,0.00010212,2]
[339783866,1727986516799,182.1,8.235e-05,2]
[339783867,1727986538343,718.73968402,0.00010193,2]
[339783868,1727986649894,250.0,0.0001022,2]
[339783869,1727986674325,23900.0,0.00010177,2]
[339783870,1727986675058,359.36984201,0.00010193,2]
[339783871,1727986736149,176.87,0.0001019,2]
[339783876,1727986811035,179.684921,0.00010193,2]
[339783877,1727986834421,1852.42,0.0001017,2]
[339783878,1727986847799,1647.3,8.341e-05,2]
[339783879,1727986856528,203.24,0.00010202,2]
[339783880,1727986874609,155.45,0.00010202,2]
[339783881,1727986946762,179.68492099,0.00010176,2]
[339783882,1727987002465,1705.52,0.00010175,2]
[339783883,1727987031394,182.1,8.181e-05,2]
[339783884,1727987054348,250.0,0.00010212,2]
[339783885,1727987129351,368.93344449,0.000101,2]
[339783886,1727987137012,200.0,9.648e-05,2]
[339783887,1727987155280,1279.31311316,6.94e-05,2]
[339783888,1727987188792,250.0,9.982e-05,2]
[339783889,1727987193146,20584.90284347,9.993e-05,2]
[339783890,1727987193178,3315.09715653,9.993e-05,2]
[339783891,1727987237616,154.03,9.99e-05,2]
[339783892,1727987256449,240.24,9.959e-05,2]
[339783893,1727987265098,200.23519539,9.909e-05,2]
[339783902,1727987412970,1564.93,8.219e-05,2]
[339783915,1727987431475,-172.62,0.00010259,2]
[339783916,1727987431484,-200.0,0.00010262,2]
[339783917,1727987431494,-836.48,0.00010276,2]
[339783918,1727987431503,-1000.0,0.00010304,2]
[339783919,1727987431512,-3889.86862834,0.00010376,2]
[339783920,1727987431616,-262.58507275,0.00010376,2]
[339783921,1727987431638,-2894.96547104,0.00010376,2]
[339783922,1727987431647,-750.0,0.00010376,2]
[339783923,1727987431656,-1564.93,0.0001047,2]
[339783924,1727987431666,-172.62,0.00010635,2]
[339783925,1727987431676,-1215.65651583,0.0001069,2]
[339783926,1727987431685,-7107.74,0.0001069,2]
[339783927,1727987431695,-150.0,0.00010732,2]
[339783928,1727987431704,-1500.0,0.00010756,2]
[339783929,1727987431713,-1127.22634023,0.0001078,2]
[339783930,1727987431722,-2814.0,0.00010781,2]
[339783931,1727987431731,-150.0,0.00010793,2]
[339783932,1727987431740,-150.0,0.00010811,2]
[339783933,1727987431749,-441.68766587,0.0001082,2]
[339783935,1727987431759,-1500.0,0.00010826,2]
[339783936,1727987431768,-150.0,0.00010834,2]
[339783938,1727987431777,-150.0,0.00010844,2]
[339783940,1727987431786,-1500.0,0.00010878,2]
[339783942,1727987431795,-150.0,0.00010896,2]
[339783943,1727987431804,-497.689,0.00010899,2]
[339783944,1727987431813,-154.145,0.00010899,2]
[339783945,1727987431828,-499.99,0.00010899,2]
[339783946,1727987431837,-150.0,0.00010899,2]
[339783947,1727987431846,-2556.0201,0.000109,2]
[339783948,1727987431863,-62836.8928,0.000109,2]
[339783949,1727987431872,-15562.8204,0.000109,2]
[339783950,1727987431881,-6803.60561195,0.000109,2]
[339783951,1727987431890,-346.34149128,0.000109,2]
[339783952,1727987431900,-13158.0407051,0.000109,2]
[339783953,1727987431910,-150.0,0.00010916,2]
[339783954,1727987431919,-1500.0,0.00010958,2]